bitfinex/quotes_SOLUSD_20241016
["timestamp","ask_amount","ask_price","bid_price","bid_amount"]
[1729060503970,6.4872,154.15,154.1,6.4888]
[1729060504476,0.03474882,154.14,154.1,6.4888]
[1729060504677,6.4881,154.13,154.09,6.4896]
[1729060504977,6.4881,154.13,154.07,6.4902]
[1729060504978,6.52354882,154.12,154.07,6.4902]
[1729060505286,6.4894,154.1,154.05,6.4912]
[1729060505460,6.4905,154.08,153.99,18.24394525]
[1729060505671,6.4905,154.08,154.03,6.4921]
[1729060505962,0.03474882,154.07,154.01,18.24394525]
[1729060506170,0.03474882,154.07,154.06,6.4909]
[1729060507085,0.03474882,154.07,154.06,30.367784]
[1729060507287,0.6277055,154.18,154.11,0.1]
[1729060507460,0.6277055,154.18,154.16,6.4867]
[1729060507663,0.03474882,154.17,154.16,6.4867]
[1729060508365,0.03474882,154.17,154.13,18.24394525]
[1729060508366,0.03474882,154.17,154.14,6.4873]
[1729060508966,0.03474882,154.17,154.11,18.24394525]
[1729060509184,0.03474882,154.17,154.16,6.4867]
[1729060509563,0.03474882,154.17,154.11,18.24394525]
[1729060510285,0.03474882,154.17,154.12,6.488]
[1729060510676,0.03474882,154.17,154.09,18.24394525]
[1729060510677,76.52114882,154.17,154.11,6.4887]
[1729060511495,76.52114882,154.17,154.13,6.488]
[1729060511496,0.03474882,154.17,154.13,6.488]
[1729060511665,0.03474882,154.17,154.14,6.4874]
[1729060512285,0.03474882,154.17,154.15,6.4871]
[1729060512491,0.03474882,154.17,154.16,6.4867]
[1729060514986,0.03474882,154.17,154.08,52.89825118]
[1729060515292,6.52114882,154.17,154.08,29.12136718]
[1729060515473,0.03474882,154.17,154.12,6.488]
[1729060515674,70.0,154.16,154.08,29.12136718]
[1729060515884,70.0,154.16,154.05,44.92726718]
[1729060516094,0.24650236,154.15,154.06,0.2]
[1729060516268,0.24650236,154.15,154.14,6.4876]
[1729060516475,0.24650236,154.15,154.13,6.488]
[1729060517480,0.24650236,154.15,154.14,6.4876]
[1729060518184,0.24650236,154.15,154.12,6.4882]
[1729060518383,0.24650236,154.15,154.08,29.12136718]
[1729060518384,70.24650236,154.15,154.05,44.82726718]
[1729060518574,70.24650236,154.15,154.09,6.4892]
[1729060518767,70.24650236,154.15,154.05,44.82726718]
[1729060518965,6.488,154.13,154.08,6.49]
[1729060519181,70.0,154.15,154.05,44.82726718]
[1729060519388,70.0,154.15,154.09,6.4896]
[1729060519389,0.24650236,154.12,154.09,6.4896]
[1729060519587,0.24650236,154.12,154.05,44.82726718]
[1729060519777,0.24650236,154.12,154.08,6.49]
[1729060520387,0.24650236,154.12,154.1,6.4891]
[1729060521677,0.24650236,154.12,154.11,6.4888]
[1729060527984,0.24650236,154.12,154.05,44.82726718]
[1729060528303,0.24650236,154.12,154.05,15.7059]
[1729060528688,0.24650236,154.12,154.08,6.49]
[1729060531896,0.24650236,154.12,154.11,6.4888]
[1729060534204,0.24650236,154.12,154.09,6.4893]
[1729060538609,0.24650236,154.12,154.08,18.21141187]
[1729060538808,0.24650236,154.12,154.11,6.4888]
[1729060539120,0.24650236,154.12,154.11,30.265684]
[1729060539322,0.6277055,154.18,154.17,6.4863]
[1729060540313,0.6277055,154.18,154.17,24.69771187]
[1729060542514,0.6277055,154.18,154.17,48.47459587]
[1729060543024,0.6277055,154.18,154.17,6.4863]
[1729060543601,0.6277055,154.18,154.17,24.69771187]
[1729060550913,0.6277055,154.18,154.17,6.4863]
[1729060551621,0.6277055,154.18,154.17,24.69771187]
[1729060552332,0.6277055,154.18,154.17,48.47459587]
[1729060552637,0.6277055,154.18,154.17,24.69771187]
[1729060555013,0.6277055,154.18,154.17,6.4863]
[1729060556212,0.6277055,154.18,154.17,24.69771187]
[1729060557315,0.6277055,154.18,154.17,48.47459587]
[1729060559914,15.6224,154.25,154.23,6.4838]
[1729060560112,70.0,154.28,154.2,18.21141187]
[1729060560313,76.4817,154.28,154.24,6.4832]
[1729060564126,6.4817,154.28,154.24,6.4832]
[1729060564343,22.5619,154.29,154.24,6.4832]
[1729060564917,16.0806,154.29,154.26,6.4824]
[1729060565723,16.0806,154.29,154.25,6.4828]
[1729060566313,16.0806,154.29,154.26,6.4822]
[1729060569534,16.0806,154.29,154.24,6.483]
[1729060569738,16.0806,154.29,154.22,6.4838]
[1729060570047,70.0,154.28,154.21,6.4843]
[1729060570332,6.4828,154.26,154.21,6.4843]
[1729060571044,6.4822,154.27,154.22,6.4841]
[1729060572423,6.4822,154.27,154.23,6.4837]
[1729060572727,22.5622,154.29,154.24,6.4831]
[1729060573722,6.4822,154.27,154.22,6.4841]
[1729060574415,6.4826,154.26,154.17,20.0]
[1729060574633,6.4826,154.26,154.17,20.1]
[1729060575751,6.4826,154.26,154.17,20.0]
[1729060575932,6.4826,154.26,154.17,23.776884]
[1729060576452,6.4821,154.27,154.23,6.4837]
[1729060576752,6.4821,154.27,154.22,6.4838]
[1729060576945,6.4821,154.27,154.23,6.4836]
[1729060577946,6.4826,154.26,154.18,18.21141187]
[1729060578448,6.4826,154.26,154.17,20.0]
[1729060578747,6.4826,154.26,154.16,41.98829587]
[1729060578968,6.484,154.23,154.18,6.4859]
[1729060579564,6.484,154.23,154.19,6.4854]
[1729060579926,6.4825,154.26,154.21,6.4844]
[1729060580328,6.4822,154.27,154.18,18.21141187]
[1729060580529,6.4822,154.27,154.23,6.4837]
[1729060580741,6.4817,154.28,154.23,6.4837]
[1729060582037,16.0806,154.29,154.2,18.21141187]
[1729060582232,16.0806,154.29,154.25,6.4828]
[1729060582233,22.5619,154.29,154.25,6.4828]
[1729060582556,16.0806,154.29,154.25,6.4828]
[1729060582966,16.0806,154.29,154.27,6.482]
[1729060583646,16.0806,154.29,154.25,6.4829]
[1729060586058,70.0,154.32,154.28,6.4817]
[1729060588155,23.0695055,154.33,154.28,6.4817]
[1729060589639,23.0695055,154.33,154.24,18.21141187]
[1729060589844,0.6277055,154.33,154.26,18.21141187]
[1729060590042,0.6277055,154.33,154.31,6.4802]
[1729060590236,0.6277055,154.33,154.32,6.48]
[1729060591247,0.6277055,154.33,154.31,6.48]
[1729060595862,0.6277055,154.33,154.27,16.5028]
[1729060596064,0.6277055,154.33,154.29,6.481]
[1729060596450,0.6277055,154.33,154.3,6.4805]
[1729060596649,0.6277055,154.33,154.27,16.5028]
[1729060596650,0.6277055,154.33,154.29,6.4812]
[1729060597054,0.6277055,154.33,154.27,16.5028]
[1729060597261,0.6277055,154.33,154.31,6.4802]
[1729060598162,0.6277055,154.33,154.27,16.5028]
[1729060598354,0.6277055,154.33,154.24,19.27865846]
[1729060598355,6.4801,154.32,154.24,7.65073523]
[1729060598552,70.0,154.32,154.23,23.1529]
[1729060598761,6.4811,154.3,154.24,6.483]
[1729060599157,6.4814,154.29,154.24,6.483]
[1729060599553,22.4453,154.3,154.24,6.483]
[1729060603262,0.6277055,154.33,154.29,6.4811]
[1729060604271,0.6277055,154.33,154.3,6.4807]
[1729060604474,0.6277055,154.33,154.24,16.5028]
[1729060604766,0.6277055,154.33,154.29,6.4812]
[1729060605560,0.6277055,154.33,154.27,6.4818]
[1729060605758,6.48,154.32,154.27,6.4818]
[1729060606169,6.4805,154.31,154.26,6.4825]
[1729060606374,6.4801,154.32,154.26,6.4825]
[1729060606860,6.4804,154.31,154.26,6.4825]
[1729060607075,70.0,154.32,154.2,25.032813]
[1729060607254,6.481,154.3,154.25,6.4826]
[1729060607755,6.4813,154.29,154.23,6.4834]
[1729060607963,6.4813,154.29,154.24,6.4832]
[1729060608379,6.4824,154.27,154.21,6.4843]
[1729060608564,92.5288,154.28,154.21,6.4843]
[1729060608987,92.5288,154.28,154.16,16.5028]
[1729060608988,6.4825,154.26,154.16,16.5028]
[1729060609187,6.4825,154.26,154.19,6.4851]
[1729060609476,6.4825,154.26,154.2,6.4849]
[1729060610051,92.5288,154.28,154.16,16.5028]
[1729060610052,70.0,154.25,154.16,16.5028]
[1729060610252,76.483,154.25,154.19,6.4853]
[1729060611668,6.4822,154.27,154.21,6.4845]
[1729060611859,29.0105,154.28,154.23,6.4838]
[1729060612072,29.0105,154.28,154.16,16.6028]
[1729060612073,15.9644,154.28,154.24,6.4834]
[1729060612868,15.9644,154.28,154.25,6.4826]
[1729060613683,6.481,154.3,154.25,6.4826]
[1729060614188,99.0091,154.32,154.26,6.4824]
[1729060615180,6.4805,154.31,154.26,6.4824]
[1729060615861,92.5288,154.32,154.19,0.1]
[1729060616064,6.4809,154.3,154.19,0.2]
[1729060616505,6.4809,154.3,154.19,23.976884]
[1729060616689,6.4809,154.3,154.2,20.0]
[1729060617178,92.5288,154.32,154.2,20.0]
[1729060617361,6.4813,154.29,154.24,6.4832]
[1729060617971,6.4808,154.3,154.25,6.4829]
[1729060619968,6.4813,154.29,154.24,6.4833]
[1729060621058,70.0,154.28,154.17,23.776884]
[1729060621265,6.4826,154.26,154.21,6.4846]
[1729060621473,6.4822,154.27,154.22,6.4842]
[1729060622582,70.0,154.28,154.16,16.6028]
[1729060622780,6.483,154.25,154.2,6.485]
[1729060622970,70.0,154.26,154.19,6.4855]
[1729060622971,6.4835,154.24,154.19,6.4855]
[1729060624286,6.4841,154.23,154.17,6.4859]
[1729060624663,6.4847,154.21,154.12,15.2001]
[1729060624989,6.4859,154.18,154.08,15.2001]
[1729060625398,70.0,154.18,154.08,15.2001]
[1729060625569,6.4864,154.17,154.11,6.4884]
[1729060625774,6.4864,154.17,154.12,6.4882]
[1729060626690,6.4867,154.16,154.08,15.2001]
[1729060626891,70.0,154.16,154.04,15.2001]
[1729060627076,6.4881,154.13,154.03,7.26657848]
[1729060627387,6.4881,154.13,154.03,6.2921]
[1729060629992,76.4876,154.14,154.03,6.2921]
[1729060630168,76.4868,154.16,154.1,6.4892]
[1729060630367,76.4868,154.16,154.04,20.0]
[1729060630368,6.4872,154.15,154.04,20.0]
[1729060630578,76.4877,154.14,154.09,6.4897]
[1729060631172,70.0,154.16,154.11,6.4887]
[1729060632074,76.4868,154.16,154.11,6.4887]
[1729060632585,70.0,154.14,154.08,6.49]
[1729060632778,70.0,154.14,154.04,20.0]
[1729060634395,6.4883,154.13,154.08,6.4901]
[1729060635184,70.0,154.16,154.04,20.0]
[1729060635395,70.0,154.14,154.04,20.0]
[1729060635687,76.4876,154.14,154.04,20.0]
[1729060636395,76.4876,154.14,154.09,6.4895]
[1729060636976,6.4876,154.14,154.09,6.4895]
[1729060637173,6.4872,154.15,154.09,6.4895]
[1729060637496,76.4876,154.14,154.09,6.4895]
[1729060637990,6.4876,154.14,154.09,6.4895]
[1729060638873,6.4876,154.14,154.04,20.0]
[1729060638874,70.0,154.14,154.04,20.0]
[1729060639077,70.0,154.14,154.08,6.49]
[1729060639078,6.488,154.13,154.08,6.49]
[1729060639789,70.0,154.14,154.04,20.0]
[1729060639984,70.0,154.16,154.04,20.0]
[1729060640186,70.0,154.16,154.11,6.4887]
[1729060640372,76.4871,154.16,154.11,6.4887]
[1729060640576,70.0,154.16,154.09,6.4893]
[1729060640775,76.4877,154.14,154.09,6.4893]
[1729060641397,6.4877,154.14,154.09,6.4893]
[1729060641598,76.4871,154.16,154.11,6.4887]
[1729060642094,6.3007,154.19,154.08,20.1]
[1729060642292,15.9002,154.2,154.08,20.1]
[1729060642293,15.9002,154.2,154.1,26.147]
[1729060642475,6.032,154.23,154.18,6.4859]
[1729060642476,82.5158,154.23,154.18,6.4859]
[1729060642675,82.5158,154.23,154.11,23.776884]
[1729060642676,6.4842,154.22,154.16,6.4863]
[1729060643485,70.0,154.21,154.1,26.147]
[1729060643683,70.0,154.21,154.17,6.4861]
[1729060644086,70.0,154.21,154.1,26.147]
[1729060644390,76.4847,154.21,154.16,6.4866]
[1729060646897,76.4847,154.21,154.1,26.147]
[1729060646898,76.4858,154.19,154.14,6.4875]
[1729060650279,70.0,154.19,154.14,6.4875]
[1729060650475,76.4855,154.19,154.14,6.4875]
[1729060652395,76.4849,154.21,154.15,6.4868]
[1729060652777,6.4852,154.2,154.15,6.4868]
[1729060653504,76.487,154.16,154.11,6.4885]
[1729060654580,76.487,154.16,154.07,15.1431]
[1729060654581,6.4872,154.15,154.07,15.1431]
[1729060654794,6.4877,154.14,154.09,6.4893]
[1729060655082,6.4877,154.14,154.1,6.4892]
[1729060655710,6.4877,154.14,154.07,15.1431]
[1729060655886,6.488,154.13,154.03,15.0888]
[1729060656284,6.488,154.13,154.08,6.4897]
[1729060656597,76.4876,154.14,154.09,6.4896]
[1729060660401,6.4881,154.13,154.08,6.49]
[1729060666408,6.4884,154.13,154.08,6.4898]
[1729060666621,6.4892,154.11,154.04,20.0]
[1729060667082,106.4885,154.12,154.07,6.4902]
[1729060668215,76.4885,154.12,154.07,6.4902]
[1729060668599,6.2648,154.16,154.11,6.4888]
[1729060668807,12.7516,154.16,154.11,6.4888]
[1729060669043,6.2648,154.16,154.12,6.4883]
[1729060669307,6.2648,154.16,154.04,20.2]
[1729060669308,12.7516,154.16,154.11,6.4887]
[1729060670907,12.7516,154.16,154.04,20.2]
[1729060670908,70.0,154.14,154.04,20.1]
[1729060671205,76.4876,154.14,154.1,6.4892]
[1729060673507,6.488,154.13,154.09,6.4896]
[1729060674016,70.0,154.12,154.04,20.0]
[1729060674798,70.0,154.12,154.03,15.0888]
[1729060676124,6.488,154.13,154.04,20.0]
[1729060677922,76.2648,154.16,154.12,6.4884]
[1729060678297,70.0,154.16,154.12,6.4884]
[1729060680417,70.0,154.14,154.04,20.0]
[1729060680730,76.4876,154.14,154.1,6.4891]
[1729060681805,23.776884,154.13,154.1,6.4891]
[1729060683010,30.264884,154.13,154.09,6.4896]
[1729060683216,30.264884,154.13,154.08,6.49]
[1729060686097,23.776884,154.13,154.04,20.0]
[1729060686319,23.776884,154.15,154.05,0.1]
[1729060686548,70.0,154.18,154.06,0.2]
[1729060686825,70.0,154.18,154.14,6.4872]
[1729060687405,76.4859,154.18,154.14,6.4872]
[1729060688550,23.776884,154.17,154.14,6.4872]
[1729060688915,30.264184,154.15,154.1,6.4892]
[1729060690428,30.264184,154.15,154.07,6.607]
[1729060690618,30.264184,154.15,154.11,6.4888]
[1729060692734,30.264184,154.15,154.1,6.4892]
[1729060694133,23.776884,154.17,154.13,6.4877]
[1729060694324,23.776884,154.17,154.08,20.0]
[1729060695438,23.776884,154.17,154.13,6.4879]
[1729060695638,23.776884,154.17,154.15,6.487]
[1729060696714,23.776884,154.17,154.16,6.4867]
[1729060697044,15.6575,154.21,154.19,6.4854]
[1729060697340,76.2187,154.24,154.2,6.485]
[1729060697513,30.0,154.21,154.2,6.485]
[1729060698142,70.0,154.24,154.21,6.4844]
[1729060698526,76.4835,154.24,154.19,6.4852]
[1729060699238,70.0,154.24,154.21,6.4845]
[1729060702844,23.776884,154.21,154.14,6.17]
[1729060704527,23.776884,154.21,154.18,6.4857]
[1729060707125,23.776884,154.21,154.17,6.4862]
[1729060707323,30.262384,154.19,154.15,6.4871]
[1729060707540,30.262384,154.19,154.1,6.17]
[1729060708647,23.776884,154.19,154.15,6.4871]
[1729060711748,23.776884,154.19,154.16,6.4865]
[1729060712750,23.776884,154.2,154.16,6.4865]
[1729060713324,23.776884,154.21,154.11,20.0]
[1729060713537,23.776884,154.21,154.18,6.4858]
[1729060714666,23.776884,154.23,154.11,20.1]
[1729060714955,23.776884,154.23,154.2,6.485]
[1729060715134,23.776884,154.23,154.19,6.4854]
[1729060719358,30.260684,154.23,154.19,6.4854]
[1729060721158,23.776884,154.23,154.19,6.4854]
[1729060721331,23.776884,154.23,154.2,6.485]
[1729060727075,70.0,154.28,154.15,0.1]
[1729060727364,70.0,154.28,154.14,24.4193755]
[1729060727365,70.0,154.3,154.25,6.4827]
[1729060727560,76.4804,154.32,154.27,6.482]
[1729060727774,30.0,154.28,154.27,6.482]
[1729060727947,30.0,154.28,154.26,6.4825]
[1729060728969,30.0,154.28,154.27,6.4821]
[1729060729143,76.48,154.32,154.27,6.4821]
[1729060729465,23.776884,154.31,154.27,6.4821]
[1729060729768,76.48,154.32,154.27,6.4821]
[1729060731153,30.257284,154.31,154.26,6.4824]
[1729060731657,23.776884,154.32,154.28,6.4816]
[1729060732071,70.0,154.31,154.21,11.63564288]
[1729060732244,23.776884,154.3,154.21,20.0]
[1729060733655,30.256884,154.32,154.27,6.4818]
[1729060737448,30.256884,154.32,154.28,6.4817]
[1729060737651,70.6277055,154.33,154.29,6.4811]
[1729060739094,0.6277055,154.33,154.32,6.48]
[1729060739375,30.6277055,154.33,154.32,6.48]
[1729060739673,0.6277055,154.33,154.32,6.48]
[1729060743869,0.6277055,154.33,154.26,14.535713]
[1729060743870,0.6277055,154.33,154.27,15.0198]
[1729060744108,0.6277055,154.33,154.29,6.481]
[1729060744280,0.6277055,154.33,154.27,15.0198]
[1729060744482,0.6277055,154.33,154.32,6.48]
[1729060744884,0.6277055,154.33,154.27,15.0198]
[1729060745087,0.6277055,154.33,154.3,6.4804]
[1729060746972,0.6277055,154.33,154.29,6.4812]
[1729060747671,0.6277055,154.33,154.3,6.4807]
[1729060747878,0.6277055,154.33,154.24,11.63564288]
[1729060747879,23.776884,154.32,154.24,20.0]
[1729060748074,23.776884,154.32,154.23,15.0198]
[1729060748075,30.257084,154.32,154.27,6.4821]
[1729060748274,6.4806,154.31,154.26,6.4823]
[1729060748496,23.776884,154.3,154.26,6.4823]
[1729060748782,30.257884,154.3,154.25,6.4829]
[1729060748989,23.776884,154.3,154.23,15.0198]
[1729060749291,6.482,154.28,154.23,21.5032]
[1729060749472,6.482,154.28,154.24,6.4833]
[1729060749676,23.776884,154.28,154.19,15.0198]
[1729060749883,23.776884,154.28,154.23,6.4835]
[1729060750193,23.776884,154.3,154.25,6.4828]
[1729060750364,0.6277055,154.33,154.23,11.63564288]
[1729060750708,0.6277055,154.33,154.32,6.48]
[1729060762600,0.6277055,154.33,154.26,15.0198]
[1729060762899,0.6277055,154.33,154.31,6.4804]
[1729060763973,0.6277055,154.33,154.3,6.4808]
[1729060766908,0.6277055,154.33,154.31,6.4804]
[1729060767991,0.6277055,154.33,154.3,6.4808]
[1729060769992,0.6277055,154.33,154.25,6.0057]
[1729060769993,7.1073055,154.33,154.28,6.4813]
[1729060770195,93.776884,154.32,154.22,15.066]
[1729060770499,6.482,154.28,154.23,6.4837]
[1729060770687,6.4822,154.27,154.22,6.4841]
[1729060770889,6.4822,154.27,154.18,15.066]
[1729060770890,6.4826,154.26,154.21,6.4845]
[1729060771589,30.258984,154.27,154.22,6.4841]
[1729060773292,70.0,154.26,154.18,15.066]
[1729060774090,30.260084,154.25,154.2,6.4847]
[1729060775998,70.0,154.26,154.22,6.4842]
[1729060776194,23.776884,154.25,154.17,6.1555]
[1729060776405,23.776884,154.25,154.2,6.485]
[1729060779387,98.9028,154.26,154.21,6.4842]
[1729060779909,92.4199,154.26,154.22,6.4842]
[1729060780689,23.776884,154.27,154.23,6.4837]
[1729060781788,76.4826,154.26,154.22,6.484]
[1729060782004,30.259884,154.25,154.2,6.4847]
[1729060782904,30.259884,154.25,154.16,20.0]
[1729060783100,30.259884,154.25,154.21,6.4846]
[1729060785396,30.259884,154.25,154.21,22.6961]
[1729060786019,23.776884,154.25,154.21,22.6961]
[1729060786395,30.259984,154.25,154.21,16.2115]
[1729060787791,30.259984,154.25,154.21,22.6961]
[1729060790203,23.776884,154.25,154.21,22.6961]
[1729060791121,30.259884,154.25,154.2,6.4849]
[1729060791293,30.259884,154.25,154.19,6.4854]
[1729060791294,30.260684,154.23,154.19,6.4854]
[1729060792296,23.776884,154.23,154.19,22.6986]
[1729060799007,70.0,154.22,154.19,16.2132]
[1729060799221,23.776884,154.21,154.17,6.4863]
[1729060799619,70.0,154.22,154.18,6.4855]
[1729060799806,70.0,154.22,154.16,16.2164]
[1729060800002,70.0,154.22,154.19,6.4854]
[1729060800910,70.0,154.22,154.16,16.2164]
[1729060801228,23.776884,154.21,154.17,6.486]
[1729060802425,70.0,154.22,154.19,16.2134]
[1729060802698,23.776884,154.23,154.21,6.4846]
[1729060802922,30.0,154.22,154.21,6.4846]
[1729060803102,23.776884,154.23,154.19,22.6984]
[1729060803713,85.95,154.24,154.21,6.4845]
[1729060803917,92.4749,154.28,154.18,20.0]
[1729060804137,92.4749,154.28,154.24,6.4833]
[1729060804704,92.4317,154.28,154.24,22.6914]
[1729060805624,23.776884,154.27,154.24,22.6914]
[1729060806130,23.776884,154.27,154.24,16.2081]
[1729060810045,23.776884,154.27,154.17,27.87284527]
[1729060810046,30.261084,154.22,154.17,6.4863]
[1729060810249,70.0,154.21,154.13,16.2261]
[1729060810410,23.776884,154.2,154.13,16.2261]
[1729060811228,23.776884,154.2,154.17,6.4862]
[1729060811443,70.0,154.19,154.11,6.0338]
[1729060811929,23.776884,154.18,154.11,6.0338]
[1729060812639,23.776884,154.18,154.14,6.4875]
[1729060813735,43.776884,154.2,154.16,6.4867]
[1729060814028,23.776884,154.2,154.16,6.4867]
[1729060814927,23.776884,154.2,154.17,6.4863]
[1729060815229,23.776884,154.2,154.11,6.0338]
[1729060815433,23.776884,154.2,154.16,6.4866]
[1729060820622,76.4858,154.19,154.14,6.4875]
[1729060820826,6.486,154.18,154.11,6.0338]
[1729060821124,70.0,154.19,154.11,6.0338]
[1729060821321,15.40624246,154.21,154.17,6.4862]
[1729060821322,23.776884,154.2,154.17,6.4862]
[1729060821526,23.776884,154.22,154.19,6.485]
[1729060821918,16.4983,154.25,154.15,15.4562]
[1729060821919,86.4983,154.25,154.15,15.4562]
[1729060822121,86.4983,154.29,154.17,6.1147]
[1729060822444,86.4983,154.29,154.18,31.64674527]
[1729060823517,86.4983,154.29,154.25,6.4826]
[1729060824348,70.0,154.31,154.19,15.4562]
[1729060824635,70.0,154.29,154.25,6.4829]
[1729060826525,23.776884,154.28,154.23,6.4836]
[1729060827934,23.776884,154.28,154.24,6.4832]
[1729060828323,30.257784,154.3,154.25,6.4829]
[1729060828523,30.257784,154.3,154.19,15.4562]
[1729060828524,23.776884,154.3,154.19,15.4562]
[1729060828719,77.1073055,154.33,154.28,6.4813]
[1729060829823,23.776884,154.32,154.28,6.4813]
[1729060830330,0.6277055,154.33,154.25,15.5156]
[1729060830639,70.6277055,154.33,154.29,6.4812]
[1729060831453,70.6277055,154.33,154.3,6.4806]
[1729060831454,0.6277055,154.33,154.3,6.4806]
[1729060831635,0.6277055,154.33,154.32,6.48]
[1729060831834,30.6277055,154.33,154.32,6.48]
[1729060832040,0.6277055,154.33,154.32,6.48]
[1729060841167,0.6277055,154.33,154.27,6.5733]
[1729060841336,0.6277055,154.33,154.28,20.0]
[1729060842367,0.6277055,154.33,154.31,6.4801]
[1729060842669,0.6277055,154.33,154.32,6.48]
[1729060846951,0.6277055,154.33,154.27,6.5733]
[1729060847154,23.776884,154.32,154.25,15.5156]
[1729060847367,30.257684,154.3,154.25,6.4829]
[1729060848541,23.776884,154.3,154.26,6.4825]
[1729060852678,23.776884,154.32,154.27,6.4819]
[1729060853575,30.256884,154.32,154.27,6.4819]
[1729060857055,44.41285158,154.32,154.27,6.4819]
[1729060857374,23.776884,154.32,154.28,6.4816]
[1729060858773,0.6277055,154.33,154.22,20.1]
[1729060858977,0.6277055,154.33,154.22,38.38709753]
[1729060859280,0.6277055,154.33,154.3,6.4808]
[1729060860252,77.1073055,154.33,154.28,6.4813]
[1729060860566,30.256984,154.32,154.28,6.4816]
[1729060860872,76.4804,154.31,154.26,6.4824]
[1729060861769,76.4804,154.31,154.27,6.4821]
[1729060863067,6.4804,154.31,154.27,6.4821]
[1729060864058,0.6277055,154.33,154.24,20.0]
[1729060864268,0.6277055,154.33,154.24,31.63773795]
[1729060864457,0.6277055,154.33,154.31,6.4801]
[1729060865677,0.6277055,154.33,154.32,6.48]
[1729060866377,0.6277055,154.33,154.31,6.4804]
[1729060867585,0.6277055,154.33,154.32,6.48]
[1729060875694,0.6277055,154.33,154.24,20.0]
[1729060875991,0.6277055,154.33,154.23,30.27756062]
[1729060875992,70.0,154.32,154.23,21.8479]
[1729060876290,23.776884,154.32,154.28,6.4816]
[1729060876774,23.776884,154.32,154.29,6.4812]
[1729060877165,23.776884,154.32,154.3,6.4807]
[1729060877689,23.776884,154.32,154.29,6.4812]
[1729060878383,0.6277055,154.33,154.3,6.4807]
[1729060881582,93.776884,154.32,154.28,6.4814]
[1729060884598,0.6277055,154.33,154.23,21.8479]
[1729060884795,0.6277055,154.33,154.3,6.4808]
[1729060890193,0.6277055,154.33,154.25,11.63202179]
[1729060890506,0.6277055,154.33,154.32,6.48]
[1729060902805,0.6277055,154.33,154.25,22.35]
[1729060902999,0.6277055,154.33,154.29,6.4812]
[1729060903495,7.1073055,154.33,154.29,6.4812]
[1729060903704,7.1073055,154.33,154.28,6.4816]
[1729060904588,93.776884,154.32,154.28,6.4816]
[1729060905478,100.257284,154.32,154.26,6.4821]
[1729060905692,23.776884,154.29,154.21,15.785]
[1729060906102,30.258184,154.29,154.24,6.483]
[1729060906713,23.776884,154.29,154.25,6.4828]
[1729060906906,70.0,154.28,154.24,6.4833]
[1729060907478,70.0,154.28,154.17,22.2232]
[1729060907479,23.776884,154.27,154.17,22.2232]
[1729060907683,23.776884,154.27,154.22,6.484]
[1729060908408,30.259084,154.27,154.22,6.484]
[1729060908905,23.776884,154.27,154.22,6.484]
[1729060909217,23.776884,154.27,154.23,6.4836]
[1729060909592,39.860884,154.27,154.23,6.4836]
[1729060913508,70.0,154.3,154.18,31.63202179]
[1729060913815,23.776884,154.29,154.18,31.63202179]
[1729060914404,16.084,154.31,154.28,6.4816]
[1729060920418,70.0,154.32,154.28,6.4816]
[1729060920593,0.6277055,154.33,154.32,6.48]
[1729060920915,30.6277055,154.33,154.32,6.48]
[1729060921098,30.6277055,154.33,154.26,11.63202179]
[1729060921296,30.6277055,154.33,154.31,6.4803]
[1729060921704,0.6277055,154.33,154.31,6.4803]